fUSD/lending_fUSD_20240220
["ID","MTS","AMOUNT","RATE_DAILY","PERIOD"]
[314551195,1708416659601,-500.0,0.00036164,2]
[314551196,1708416659610,-500.0,0.00036164,2]
[314551197,1708416659619,-500.0,0.00036164,2]
[314551198,1708416659628,-528.45,0.00036164,2]
[314551199,1708416659637,-500.0,0.00036164,2]
[314551200,1708416659646,-500.0,0.00036164,2]
[314551201,1708416659655,-510.36,0.00036164,2]
[314551202,1708416659664,-790.76,0.00036164,2]
[314551203,1708416659673,-500.0,0.00036164,2]
[314551204,1708416659682,-500.0,0.00036164,2]
[314551205,1708416659691,-500.0,0.00036164,2]
[314551206,1708416659700,-555.79,0.00036164,2]
[314551207,1708416659709,-500.0,0.00036164,2]
[314551208,1708416659718,-500.0,0.00036164,2]
[314551209,1708416659727,-709.46,0.00036164,2]
[314551210,1708416659736,-865.52,0.00036164,2]
[314551211,1708416659745,-500.0,0.00036164,2]
[314551212,1708416659754,-500.0,0.00036164,2]
[314551213,1708416659763,-688.46,0.00036164,2]
[314551214,1708416659773,-2187.03,0.00036164,2]
[314551215,1708416659782,-737.55,0.00036164,2]
[314551216,1708416659792,-500.0,0.00036164,2]
[314551217,1708416659801,-19430.62464856,0.00036164,2]
[314551218,1708416659810,-358.97225773,0.00036164,2]
[314551219,1708416659819,-577.54360892,0.00036164,2]
[314551220,1708416659828,-15065.92868038,0.00036165,2]
[314551221,1708416659837,-1984.32490972,0.00036165,2]
[314551222,1708416659847,-271.26797733,0.0003618,2]
[314551223,1708416659856,-443.9310521,0.0003618,2]
[314551224,1708416659866,-2787.63088894,0.0003618,2]
[314551225,1708416659875,-10329.69960857,0.00036194,9]
[314551226,1708416659885,-154.38453027,0.00036265,2]
[314551227,1708416659894,-223.04154265,0.0003627,2]
[314551228,1708416659903,-3893474.66510607,0.00036276,4]
[314551229,1708416659912,-1424923.25351927,0.00036276,2]
[314551230,1708416660487,-17.38433723,0.00036164,2]
[314551231,1708416660498,-482.61566277,0.00036164,2]
[314551232,1708416660508,-7438.66017921,0.00036276,2]
[314551233,1708416661190,-524.93,0.00032582,2]
[314551234,1708416661202,-254.35747842,0.00034846,2]
[314551235,1708416661226,-270.57252158,0.00034846,2]
[314551236,1708416661236,-133.12270667,0.000356,2]
[314551237,1708416661577,-403.67514693,0.000356,2]
[314551238,1708416661587,-51382.32485307,0.00036276,2]
[314551239,1708416661984,-536.7978536,0.00035898,2]
[314551240,1708416661995,-2047.0521464,0.00036276,2]
[314551241,1708416662314,-500.0,0.00036276,2]
[314551242,1708416683672,150.0,0.00029617,2]
[314551246,1708417636416,-519.5412,0.00025618,2]
[314551247,1708417636439,-213.41,0.0002562,2]
[314551248,1708417636461,-1068.4209961,0.00026087,2]
[314551249,1708417636481,-347.2621881,0.00026087,2]
[314551250,1708417641094,-995.7378119,0.00026087,2]
[314551251,1708417641114,-150.0,0.00026088,2]
[314551252,1708417641134,-203.22520032,0.00026089,2]
[314551253,1708417641156,-16873.623238,0.00026089,2]
[314551254,1708417648254,-4654.65555448,0.00026089,2]
[314551255,1708417648276,-248.7618202,0.00026293,2]
[314551256,1708417648298,-160.30807589,0.00026297,2]
[314551257,1708417648317,-210.31586043,0.00026394,2]
[314551258,1708417648337,-210.31586043,0.00026394,2]
[314551259,1708417648356,-764.45430584,0.00026394,2]
[314551260,1708417648376,-160.30807584,0.00027708,2]
[314551261,1708417648397,-789.05088548,0.00027708,2]
[314551264,1708417746389,-750.0,0.00025,3]
[314551265,1708417746410,-414.8257,0.00027,3]
[314551266,1708417749116,-385.1743,0.00027,3]
[314551267,1708417749137,-654.08911452,0.00027708,2]
[314551268,1708417749160,-382.86,0.00027708,2]
[314551269,1708417749181,-195.0,0.00028697,2]
[314551270,1708417749201,-354.56,0.00029,2]
[314551271,1708417749223,-850.0,0.00029,3]
[314551272,1708417749244,-150.0,0.00029,2]
[314551273,1708417749266,-160.30807584,0.0002912,2]
[314551274,1708417749286,-150.0,0.00029548,2]
[314551275,1708417749306,-176.67982278,0.00029617,2]
[314551276,1708417749326,-261.47,0.00029893,2]
[314551277,1708417749346,-1647.62,0.00029893,2]
[314551278,1708417749366,-624.91044193,0.00029897,2]
[314551279,1708417749403,1855.56,0.00029897,2]
[314551280,1708417750024,22796.27,0.00029897,2]
[314551283,1708417770840,673.09953372,0.00029899,2]
[314551293,1708417831906,-1312.17034625,0.0002999,2]
[314551294,1708417831918,-1947.94470116,0.0002999,2]
[314551295,1708417831927,-1441.4,0.00029999,2]
[314551296,1708417831936,-150.0,0.0003,30]
[314551297,1708417831945,-360.49820868,0.0003,2]
[314551298,1708417831954,-499.99,0.0003,2]
[314551299,1708417831963,-5651.57684897,0.0003,4]
[314551300,1708417831973,-7714.36379672,0.0003,4]
[314551301,1708417831982,-1559.1674077,0.0003047,4]
[314551302,1708417831992,-540.82,0.00030471,2]
[314551303,1708417832001,-160.30807584,0.00030531,2]
[314551304,1708417832011,-900.0,0.00031,3]
[314551305,1708417832020,-169.71,0.00031793,2]
[314551306,1708417832030,-501.83,0.00031845,2]
[314551307,1708417832039,-207.32,0.00031917,2]
[314551308,1708417832048,-160.30807584,0.00031942,2]
[314551309,1708417832057,-250.0,0.00031985,2]
[314551310,1708417832067,-23900.0,0.00032021,2]
[314551311,1708417832076,-250.0,0.00032025,2]
[314551312,1708417832085,-233.6,0.0003205,2]
[314551313,1708417832095,-661.76,0.00032092,2]
[314551314,1708417832105,-183.64,0.00032167,2]
[314551315,1708417832114,-222.84,0.00032389,2]
[314551316,1708417832124,-187.12,0.00032727,10]
[314551317,1708417832133,-540.82,0.00032735,2]
[314551318,1708417832142,-2000.0,0.0003274,2]
[314551319,1708417832152,-212.48,0.00032977,2]
[314551320,1708417832162,-950.0,0.00033,3]
[314551321,1708417832172,-212.48,0.00033151,2]
[314551322,1708417832182,-212.48,0.00033325,2]
[314551323,1708417832192,-160.30807584,0.00033353,2]
[314551324,1708417832201,-152.67,0.00033368,2]
[314551325,1708417832211,-212.48,0.00033498,2]
[314551326,1708417832220,-9999.99,0.00033547,2]
[314551327,1708417832229,-155.0,0.00033549,4]
[314551328,1708417832239,-353.49,0.00033549,2]
[314551329,1708417832248,-1475.96,0.0003355,2]
[314551330,1708417832258,-207.32,0.00033561,2]
[314551331,1708417832268,-212.48,0.00033672,2]
[314551332,1708417832279,-173.73,0.00033677,2]
[314551334,1708417832288,-212.48,0.00033845,2]
[314551336,1708417832300,-1432.08,0.00033924,2]
[314551338,1708417832309,-210.0,0.00033932,2]
[314551340,1708417832319,-150.0,0.0003394,2]
[314551342,1708417832328,-212.48,0.00034019,2]
[314551344,1708417832338,-150.0,0.00034171,2]
[314551346,1708417832348,-150.0,0.00034173,2]
[314551349,1708417832357,-150.0,0.00034186,2]
[314551352,1708417832366,-212.48,0.00034192,2]
[314551354,1708417832375,-150.0,0.00034218,2]
[314551356,1708417832384,-150.0,0.00034256,2]
[314551358,1708417832394,-150.0,0.00034268,2]
[314551359,1708417832403,-150.0,0.0003427,2]
[314551361,1708417832413,-150.0,0.00034279,2]
[314551362,1708417832422,-150.0,0.00034282,2]
[314551364,1708417832431,-183.64,0.00034311,2]
[314551366,1708417832440,-150.0,0.00034348,2]
[314551368,1708417832449,-212.48,0.00034366,2]
[314551370,1708417832459,-176.94881934,0.0003442,14]
[314551372,1708417832469,-150.0,0.0003446,2]
[314551373,1708417832479,-1431.5,0.00034518,2]
[314551375,1708417832492,-1448.02,0.00034519,2]
[314551376,1708417832502,-1456.31,0.00034519,2]
[314551377,1708417832511,-1431.66,0.00034519,2]
[314551378,1708417832521,-1456.2870428,0.00034519,2]
[314551379,1708417832531,-1463.67,0.0003452,2]
[314551380,1708417832540,-1429.44,0.0003452,2]
[314551381,1708417832551,-1451.37,0.0003452,2]
[314551382,1708417832561,-1459.37,0.0003452,2]
[314551383,1708417832571,-12759.549014,0.0003452,2]
[314551384,1708417832582,-320.03,0.00034521,2]
[314551385,1708417832591,-212.48,0.00034539,2]
[314551386,1708417832601,-150.0,0.00034543,2]
[314551387,1708417832610,-150.0,0.00034582,2]
[314551388,1708417832619,-150.0,0.00034608,2]
[314551389,1708417832628,-150.0,0.00034634,2]
[314551390,1708417832638,-150.0,0.00034664,2]
[314551391,1708417832647,-229.62482318,0.00034665,7]
[314551392,1708417832657,-150.0,0.00034677,2]
[314551393,1708417832666,-414.77,0.00034709,10]
[314551394,1708417832675,-212.48,0.00034713,2]
[314551395,1708417832684,-318.78,0.00034719,10]
[314551396,1708417832693,-497.73,0.00034719,10]
[314551397,1708417832702,-150.0,0.00034726,2]
[314551398,1708417832711,-14316.9705787,0.00034729,6]
[314551399,1708417832720,-1326.97112301,0.00034737,4]
[314551400,1708417832729,-139528.94790822,0.00034739,2]
[314551401,1708417832745,-27847.0306,0.00034739,2]
[314551402,1708417832756,-112846.210749,0.00034739,2]
[314551403,1708417832768,-104003.83754278,0.00034739,2]
[314551404,1708417832777,-160.30807584,0.00034765,2]
[314551405,1708417832785,-19139.323521,0.00034794,2]
[314551406,1708417832796,-150.0,0.00034808,2]
[314551407,1708417832806,-150.0,0.00034822,2]
[314551408,1708417832815,-150.0,0.00034827,2]
[314551409,1708417832825,-150.0,0.00034836,2]
[314551410,1708417832834,-909.30618626,0.00034838,2]
[314551411,1708417832843,-338.24,0.00034839,2]
[314551412,1708417832852,-167.29988813,0.00034851,2]
[314551413,1708417832861,-150.0,0.00034862,2]
[314551414,1708417832871,-212.48,0.00034887,2]
[314551415,1708417832880,-2013.8580263,0.000349,2]
[314551416,1708417832889,-150.0,0.00034912,2]
[314551417,1708417832898,-25519.098029,0.00034931,2]
[314551418,1708417832907,-150.0,0.00034937,2]
[314551419,1708417832916,-150.0,0.00034957,2]
[314551420,1708417832925,-229.62482314,0.00034981,7]
[314551421,1708417832934,-540.82,0.00034999,2]
[314551422,1708417832943,-1000.0,0.00035,3]
[314551423,1708417832952,-8798.41,0.00035,2]
[314551424,1708417832962,-150.0,0.00035046,2]
[314551425,1708417832971,-150.0,0.00035055,2]
[314551426,1708417832980,-150.0,0.00035059,2]
[314551427,1708417832989,-212.48,0.0003506,2]
[314551428,1708417832998,-31898.872536,0.00035068,2]
[314551429,1708417833007,-150.0,0.00035076,2]
[314551430,1708417833016,-152.67,0.00035107,2]
[314551431,1708417833026,-171.73,0.00035109,2]
[314551432,1708417833035,-150.0,0.00035119,2]
[314551433,1708417833044,-150.0,0.00035132,2]
[314551434,1708417833053,-150.0,0.00035139,2]
[314551435,1708417833062,-150.0,0.00035163,2]
[314551436,1708417833072,-150.0,0.00035166,2]
[314551437,1708417833081,-150.0,0.00035182,2]
[314551438,1708417833090,-207.32,0.00035205,2]
[314551439,1708417833099,-212.48,0.00035234,2]
[314551440,1708417833108,-155.28,0.00035237,2]
[314551441,1708417833117,-150.0,0.00035238,2]
[314551442,1708417833127,-150.0,0.00035246,2]
[314551443,1708417833136,-150.0,0.0003528,2]
[314551444,1708417833146,-171.73,0.00035294,2]
[314551445,1708417833155,-229.62482314,0.00035298,7]
[314551446,1708417833164,-150.0,0.00035312,2]
[314551447,1708417833173,-666.05930191,0.00035341,4]
[314551448,1708417833182,-44658.42155,0.00035342,2]
[314551449,1708417833191,-150.0,0.00035357,2]
[314551450,1708417833200,-2935.0,0.000354,2]
[314551451,1708417833209,-17755.0,0.000354,2]
[314551452,1708417833219,-212.48,0.00035407,2]
[314551453,1708417833227,-150.0,0.00035436,2]
[314551454,1708417833237,-150.0,0.00035472,2]
[314551455,1708417833247,-171.73,0.00035479,2]
[314551456,1708417833256,-150.0,0.00035489,2]
[314551457,1708417833265,-150.0,0.00035494,2]
[314551458,1708417833275,-150.0,0.00035495,2]
[314551459,1708417833284,-1000.0,0.000355,7]
[314551460,1708417833295,-542.31512992,0.00035514,2]
[314551461,1708417833305,-5000.0,0.00035516,3]
[314551462,1708417833315,-166.01,0.00035549,2]
[314551463,1708417833324,-210.0,0.00035562,5]
[314551464,1708417833334,-212.48,0.00035581,2]
[314551465,1708417833344,-150.0,0.00035588,2]
[314551466,1708417833354,-800.0,0.00035589,2]
[314551467,1708417833363,-150.0,0.00035594,2]
[314551468,1708417833373,-150.0,0.00035597,2]
[314551469,1708417833382,-150.0,0.00035599,2]
[314551470,1708417833391,-150.0,0.00035602,2]
[314551471,1708417833401,-229.62482314,0.00035614,7]
[314551472,1708417833410,-163.23584561,0.00035614,4]
[314551473,1708417833419,-515.93264545,0.00035614,4]
[314551474,1708417833428,-57112.04753687,0.00035614,2]
[314551475,1708417833441,-450.037073,0.00035614,2]
[314551476,1708417833452,-11007.35739719,0.00035614,2]
[314551477,1708417833472,-987.38231631,0.00035614,2]
[314551478,1708417833485,-1186.83409097,0.00035614,2]
[314551479,1708417833516,-373.34130124,0.00035614,2]
[314551480,1708417833527,-999.87426,0.00035614,2]
[314551481,1708417833538,-301.52504693,0.00035614,2]
[314551482,1708417833551,-269.16890155,0.00035614,2]
[314551483,1708417833563,-3893.29594668,0.00035614,2]
[314551484,1708417833575,-1844.72631274,0.00035614,2]
[314551485,1708417833683,-17677.6288084,0.00035614,2]
[314551486,1708417833697,-603.26280652,0.00035614,2]
[314551487,1708417833721,-1172.86375946,0.00035614,2]
[314551488,1708417833842,-14326.02952433,0.00035614,2]
[314551489,1708417833854,-17977.21080205,0.00035614,2]
[314551490,1708417833954,-345.64,0.00034719,10]
[314551491,1708417833964,-135.61983641,0.00035614,2]
[314551498,1708417838101,-0.00595958,0.00035332,2]
[314551499,1708417838113,-182.95555437,0.00035332,2]
[314551500,1708417838123,-522.58392024,0.00035614,2]
[314551501,1708417838135,-414.940832,0.00035614,2]
[314551616,1708417840511,-154.41373076,0.00035516,2]
[314551617,1708417840525,-74364.57285357,0.00035614,2]
[314551618,1708417840538,-500.0,0.00035614,4]
[314551619,1708417840552,-2996.89078389,0.00035614,4]
[314551620,1708417840566,-280.606,0.00035615,4]
[314551621,1708417840577,-361.37159422,0.00035615,2]
[314551622,1708417840590,-1452.87,0.00035616,2]
[314551623,1708417840603,-500.0,0.00035616,2]
[314551624,1708417840614,-601.9,0.00035616,2]
[314551625,1708417840626,-500.0,0.00035616,2]
[314551626,1708417840638,-500.0,0.00035616,2]
[314551627,1708417840650,-500.0,0.00035616,2]
[314551628,1708417840662,-500.0,0.00035616,2]
[314551629,1708417840674,-315.14515583,0.00035616,2]
[314551630,1708417840684,-500.0,0.00035616,2]
[314551631,1708417840695,-514.06558339,0.00035616,2]
[314551632,1708417840708,-539.48861664,0.00035616,2]
[314551633,1708417840720,-500.0,0.00035616,2]
[314551634,1708417840731,-500.0,0.00035616,2]
[314551635,1708417840745,-500.0,0.00035616,2]
[314551636,1708417840758,-500.0,0.00035616,2]
[314551637,1708417840770,-500.0,0.00035616,2]
[314551638,1708417840783,-500.0,0.00035616,2]
[314551639,1708417840795,-523.71612445,0.00035616,2]
[314551640,1708417840812,-500.0,0.00035616,2]
[314551641,1708417840825,-500.0,0.00035616,2]
[314551642,1708417840838,-505.71292136,0.00035616,2]
[314551643,1708417840851,-500.0,0.00035616,2]
[314551644,1708417840863,-322.30148978,0.00035616,2]
[314551645,1708417840874,-500.0,0.00035616,2]
[314551646,1708417840883,-500.0,0.00035616,2]
[314551647,1708417840894,-501.85957748,0.00035616,2]
[314551648,1708417840905,-500.0,0.00035616,2]
[314551649,1708417840916,-500.0,0.00035616,2]
[314551650,1708417840928,-463.19721713,0.00035616,2]
[314551651,1708417840940,-500.0,0.00035616,2]
[314551652,1708417840950,-500.0,0.00035616,2]
[314551653,1708417840962,-531.95517158,0.00035616,2]
[314551654,1708417840973,-500.0,0.00035616,2]
[314551655,1708417840984,-500.0,0.00035616,2]
[314551656,1708417840994,-500.0,0.00035616,2]
[314551657,1708417841004,-500.0,0.00035616,2]
[314551658,1708417841016,-500.0,0.00035616,2]
[314551659,1708417841028,-500.0,0.00035616,2]
[314551660,1708417841043,-500.0,0.00035616,2]
[314551661,1708417841053,-500.0,0.00035616,2]
[314551662,1708417841064,-500.0,0.00035616,2]
[314551663,1708417841075,-500.0,0.00035616,2]
[314551664,1708417841086,-500.0,0.00035616,2]
[314551665,1708417841097,-500.0,0.00035616,2]
[314551666,1708417841108,-500.0,0.00035616,2]
[314551667,1708417841118,-500.0,0.00035616,2]
[314551668,1708417841129,-500.0,0.00035616,2]
[314551669,1708417841140,-500.0,0.00035616,2]
[314551670,1708417841151,-500.0,0.00035616,2]
[314551671,1708417841162,-500.0,0.00035616,2]
[314551672,1708417841174,-500.0,0.00035616,2]
[314551673,1708417841185,-500.0,0.00035616,2]
[314551674,1708417841196,-500.0,0.00035616,2]
[314551675,1708417841207,-500.0,0.00035616,2]
[314551676,1708417841219,-500.0,0.00035616,2]
[314551677,1708417841230,-500.0,0.00035616,2]
[314551678,1708417841241,-321.21370928,0.00035616,2]
[314551679,1708417841253,-500.0,0.00035616,2]
[314551680,1708417841264,-500.0,0.00035616,2]
[314551681,1708417841275,-409.04710698,0.00035616,2]
[314551682,1708417841286,-500.0,0.00035616,2]
[314551683,1708417841297,-500.0,0.00035616,2]
[314551684,1708417841309,-500.0,0.00035616,2]
[314551685,1708417841320,-535.61,0.00035616,2]
[314551686,1708417841331,-500.0,0.00035616,2]
[314551687,1708417841342,-500.0,0.00035616,2]
[314551688,1708417841353,-500.0,0.00035616,2]
[314551689,1708417841365,-500.0,0.00035616,2]
[314551690,1708417841376,-500.0,0.00035616,2]
[314551691,1708417841387,-500.0,0.00035616,2]
[314551692,1708417841398,-1224.31,0.00035616,2]
[314551693,1708417841409,-634.59271741,0.00035616,2]
[314551694,1708417841420,-500.0,0.00035616,2]
[314551695,1708417841431,-500.0,0.00035616,2]
[314551696,1708417841442,-500.0,0.00035616,2]
[314551697,1708417841453,-500.0,0.00035616,2]
[314551698,1708417841464,-500.0,0.00035616,2]
[314551699,1708417841475,-500.0,0.00035616,2]
[314551700,1708417841485,-500.0,0.00035616,2]
[314551701,1708417841497,-500.0,0.00035616,2]
[314551702,1708417841508,-500.0,0.00035616,2]
[314551703,1708417841519,-500.0,0.00035616,2]
[314551704,1708417841529,-500.0,0.00035616,2]
[314551705,1708417841540,-500.0,0.00035616,2]
[314551706,1708417841552,-500.0,0.00035616,2]
[314551707,1708417841563,-587.57894811,0.00035616,2]
[314551708,1708417841574,-500.0,0.00035616,2]
[314551709,1708417841585,-500.0,0.00035616,2]
[314551710,1708417841608,-500.0,0.00035616,2]
[314551711,1708417841622,-500.0,0.00035616,2]
[314551712,1708417841636,-413.04235593,0.00035616,2]
[314551713,1708417841649,-500.0,0.00035616,2]
[314551714,1708417841662,-946.65,0.00035616,2]
[314551715,1708417841674,-500.0,0.00035616,2]
[314551716,1708417841687,-500.0,0.00035616,2]
[314551717,1708417841698,-500.0,0.00035616,2]
[314551718,1708417841712,-500.0,0.00035616,2]
[314551719,1708417841724,-500.0,0.00035616,2]
[314551720,1708417841736,-500.0,0.00035616,2]
[314551721,1708417841747,-374.43607417,0.00035616,2]
[314551728,1708417842889,-125.56392583,0.00035616,2]
[314551729,1708417842900,-500.0,0.00035616,2]
[314551730,1708417842912,-500.0,0.00035616,2]
[314551731,1708417842923,-1168.59,0.00035616,2]
[314551732,1708417842934,-500.0,0.00035616,2]
[314551733,1708417842945,-500.0,0.00035616,2]
[314551734,1708417842956,-600.30895894,0.00035616,2]
[314551735,1708417842967,-500.0,0.00035616,2]
[314551736,1708417842978,-500.0,0.00035616,2]
[314551737,1708417842989,-513.42259087,0.00035616,2]
[314551738,1708417843005,-500.0,0.00035616,2]
[314551739,1708417843018,-500.0,0.00035616,2]
[314551740,1708417843030,-652.06,0.00035616,2]
[314551741,1708417843042,-500.0,0.00035616,2]
[314551742,1708417843055,-500.0,0.00035616,2]
[314551743,1708417843067,-500.0,0.00035616,2]
[314551744,1708417843079,-500.0,0.00035616,2]
[314551745,1708417843091,-500.0,0.00035616,2]
[314551746,1708417843102,-413.76858735,0.00035616,2]
[314551747,1708417843115,-500.0,0.00035616,2]
[314551748,1708417843126,-500.0,0.00035616,2]
[314551749,1708417843138,-500.0,0.00035616,2]
[314551750,1708417843149,-500.0,0.00035616,2]
[314551751,1708417843160,-500.0,0.00035616,2]
[314551752,1708417843172,-542.79690781,0.00035616,2]
[314551753,1708417843183,-500.0,0.00035616,2]
[314551754,1708417843194,-500.0,0.00035616,2]
[314551755,1708417843206,-523.23712333,0.00035616,2]
[314551756,1708417843218,-500.0,0.00035616,2]
[314551757,1708417843229,-500.0,0.00035616,2]
[314551758,1708417843241,-527.18540934,0.00035616,2]
[314551759,1708417843252,-500.0,0.00035616,2]
[314551760,1708417843263,-500.0,0.00035616,2]
[314551761,1708417843273,-500.0,0.00035616,2]
[314551762,1708417843283,-509.80086917,0.00035616,2]
[314551763,1708417843292,-500.0,0.00035616,2]
[314551764,1708417843302,-500.0,0.00035616,2]
[314551765,1708417843311,-500.0,0.00035616,2]
[314551766,1708417843320,-500.0,0.00035616,2]
[314551767,1708417843330,-500.0,0.00035616,2]
[314551768,1708417843340,-179.0,0.00035616,2]
[314551769,1708417843350,-500.0,0.00035616,2]
[314551770,1708417843359,-500.0,0.00035616,2]
[314551771,1708417843368,-500.0,0.00035616,2]
[314551772,1708417843377,-536.95722734,0.00035616,2]
[314551776,1708417843796,-402.26399335,0.00035616,2]
[314551777,1708417843819,-271.50378446,0.00035616,2]
[314551778,1708417843840,-500.0,0.00035616,2]
[314551779,1708417843853,-500.0,0.00035616,2]
[314551780,1708417843863,-500.0,0.00035616,2]
[314551781,1708417843872,-500.0,0.00035616,2]
[314551782,1708417843881,-500.0,0.00035616,2]
[314551783,1708417843890,-500.0,0.00035616,2]
[314551784,1708417843900,-500.0,0.00035616,2]
[314551785,1708417843909,-500.0,0.00035616,2]
[314551786,1708417843918,-500.0,0.00035616,2]
[314551787,1708417843928,-500.0,0.00035616,2]
[314551788,1708417843937,-500.0,0.00035616,2]
[314551789,1708417843946,-500.0,0.00035616,2]
[314551790,1708417843955,-500.0,0.00035616,2]
[314551791,1708417843964,-360.17044144,0.00035616,2]
[314551792,1708417843973,-500.0,0.00035616,2]
[314551793,1708417843982,-516.67220141,0.00035616,2]
[314551794,1708417843992,-500.0,0.00035616,2]
[314551795,1708417844001,-500.0,0.00035616,2]
[314551796,1708417844010,-500.0,0.00035616,2]
[314551797,1708417844019,-500.0,0.00035616,2]
[314551798,1708417844028,-500.0,0.00035616,2]
[314551799,1708417844038,-500.0,0.00035616,2]
[314551800,1708417844047,-500.0,0.00035616,2]
[314551801,1708417844057,-500.0,0.00035616,2]
[314551802,1708417844066,-500.0,0.00035616,2]
[314551803,1708417844075,-500.0,0.00035616,2]
[314551804,1708417844084,-500.0,0.00035616,2]
[314551805,1708417844101,-500.0,0.00035616,2]
[314551806,1708417844114,-500.0,0.00035616,2]
[314551807,1708417844124,-500.0,0.00035616,2]
[314551808,1708417844134,-500.0,0.00035616,2]
[314551809,1708417844144,-500.0,0.00035616,2]
[314551810,1708417844153,-500.0,0.00035616,2]
[314551811,1708417844163,-556.40206288,0.00035616,2]
[314551812,1708417844173,-500.0,0.00035616,2]
[314551813,1708417844183,-549.20252204,0.00035616,2]
[314551814,1708417844193,-500.0,0.00035616,2]
[314551815,1708417844203,-531.02416083,0.00035616,2]
[314551816,1708417844213,-500.0,0.00035616,2]
[314551817,1708417844222,-500.0,0.00035616,2]
[314551818,1708417844231,-457.30983079,0.00035616,2]
[314551819,1708417844258,-42.69016921,0.00035616,2]
[314551820,1708417844268,-630.40274107,0.00035616,2]
[314551821,1708417844279,-500.0,0.00035616,2]
[314551822,1708417844289,-458.1773995,0.00035616,2]
[314551823,1708417844302,-41.8226005,0.00035616,2]
[314551824,1708417844312,-500.0,0.00035616,2]
[314551825,1708417844321,-236.7773995,0.00035616,2]
[314551826,1708417844421,-0.0115938,0.00035616,2]
[314551827,1708417844445,-296.59206043,0.00035616,2]
[314551828,1708417844455,-525.325961,0.00035616,2]
[314551829,1708417844464,-500.0,0.00035616,2]
[314551830,1708417844475,-500.0,0.00035616,2]
[314551831,1708417844485,-500.0,0.00035616,2]
[314551832,1708417844498,-508.63474513,0.00035616,2]
[314551833,1708417844507,-500.0,0.00035616,2]
[314551834,1708417844517,-430.82718999,0.00035616,2]
[314551838,1708417846002,-326.34375494,0.00035615,4]
[314551839,1708417846794,-288.04,0.00035606,10]
[314551840,1708417846803,-1232.82365276,0.00035615,4]
[314551841,1708417846813,-69.17281001,0.00035616,2]
[314551842,1708417846823,-492.42921203,0.00035616,2]
[314551846,1708417847030,-0.00283381,0.00035614,4]
[314551861,1708418254983,4179.0,0.00027,30]
[314551862,1708418843104,-519.5412,0.00026997,2]
[314551863,1708418843128,-364.27806801,0.00026998,2]
[314551864,1708418843152,-889.98182369,0.00027,2]
[314551865,1708418843176,-5651.57684897,0.0003,4]
[314551866,1708418843201,-964.09592282,0.0003,4]
[314551867,1708418843232,-482.79359031,0.0003,4]
[314551877,1708418960097,-161.15663546,0.000299,2]
[314551878,1708418960120,-1195.7529301,0.0003,4]
[314551879,1708418960146,-512.48,0.00031901,2]
[314551880,1708418973103,-698.04,0.00032509,4]
[314551881,1708418973124,-1336.76,0.0003251,2]
[314551882,1708418973144,-191.29,0.0003251,2]
[314551883,1708418973164,-150.0,0.00032743,3]
[314551884,1708418973183,-214.0,0.00032744,2]
[314551885,1708418973202,-690.0,0.00032877,4]
[314551886,1708418973222,-499.99,0.00032877,2]
[314551887,1708418973241,-246.03,0.00032897,2]
[314551888,1708418973261,-250.0,0.00032911,2]
[314551889,1708418981342,612.69686283,0.0003,4]